[Event "16th Serbian-ch Women 2022"]
[Site "Bajina Basta"]
[Date "2022.12.08"]
[Round "3.1"]
[White "Grozdanovic, Anastasia"]
[Black "Eric, Jovana"]
[Result "0-1"]
[ECO "E11"]
[WhiteElo "1870"]
[BlackElo "2245"]
[Annotator "TA"]
[PlyCount "166"]
[EventDate "2022.12.06"]
[EventType "tourn"]
[EventCountry "SRB"]
[SourceTitle "playchess.com"]
[Source "ChessBase"]
[SourceQuality "1"]
[TimeControl "40/5400+30:1800+30"]

{[%evp 9,166,20,20,6,11,12,14,6,35,14,27,0,12,12,27,17,29,24,28,11,22,-18,-18,-11,0,-36,-5,-79,-66,-59,-42,-93,-57,-70,-68,-117,-123,-145,-78,-87,-61,-84,-33,-56,-60,-63,-70,-57,-54,-59,-67,-53,-31,-50,0,0,0,0,41,0,0,0,210,39,41,29,36,36,42,9,87,0,0,-27,-49,-49,0,-49,-49,-49,-54,-54,-54,-53,-51,-77,-75,-75,-39,-77,-61,-56,-55,-56,-58,-64,-68,-75,-73,-196,-203,-202,-169,-165,-166,-219,-200,-209,-214,-189,-168,-535,-534,-6095,-524,-531,-528,-466,-392,-349,-146,-140,-97,-5214,-43,-133,-110,-177,-168,-139,-135,-1993,-1179,-2401,-793,-4644,-4644,-4334,-2472,-4644,-4644,-4637,-4134,-4574,-1081,-4637,-203,-4630,-4619,-29982,-29983,-29983,-29984,-29983,-29984,-29985,-29986,-29986,-29987]} 1. d4 {[%emt 0:00:07]} Nf6 {[%emt 0:00:05]} 2. c4 {[%emt 0:00:10]} e6 {[%emt 0:00:13]} 3. Nf3 {[%emt 0:00:09]} Bb4+ {[%emt 0:00:16]} 4. Bd2 {[%emt 0:00:07]} Qe7 {[%emt 0:00:15]} 5. g3 {[%emt 0:00:07]} Bxd2+ {[%emt 0:01:15]} 6. Nbxd2 {[%emt 0:00:10] E11: Bogo-Indian.} d6 {[%emt 0:00:16]} 7. Bg2 {[%emt 0:00:10]} e5 {[%emt 0:00:39]} 8. O-O {[%emt 0:01:34] The position is equal.} e4 {[%emt 0:03:53]} 9. Ne1 {[%emt 0:08:04]} e3 {[%emt 0:04:14]} 10. Nb3 {[%emt 0:02:49]} exf2+ {[%emt 0:05:24]} 11. Rxf2 {[%emt 0:00:08] [#]} Ng4 $146 {[%emt 0:02:22]} ({Predecessor:} 11... O-O 12. Qd2 Nc6 13. Nc2 Ne4 14. Bxe4 Qxe4 15. Qd3 Qe7 16. e4 Bd7 17. Ne3 Rae8 {0-1 (63) Karas,M (2196)-Klimkowski,J (2296) Chess.com INT 2021}) 12. Rf3 {[%emt 0:01:22]} O-O {[%emt 0:03:52]} 13. Nc2 {[%emt 0:07:59]} a5 {[%emt 0:01:33]} 14. h3 {[%emt 0:05:50]} (14. Qd3 {keeps more tension.} Nc6 15. a3 f5 16. Raf1) 14... Nf6 {[%emt 0:01:05]} 15. Re3 {[%emt 0:02:46] Against c6} Qd8 {[%emt 0:00:05]} 16. Qd3 {[%emt 0:00:59]} Nc6 {[%emt 0:03:13][%cal Bb8c6,Bc6e7,Be7g6][%mdl 32]} 17. Nd2 {[%emt 0:06:18]} d5 {[%emt 0:01:35]} (17... Nb4 $5 {[%cal Rb4d3]} 18. Nxb4 axb4 $11) 18. c5 {[%emt 0:12:45]} (18. Rf3 $11) 18... Ne7 {[%emt 0:07:35]} 19. Rf1 {[%emt 0:03:25]} Ng6 {[%emt 0:00:19]} 20. Ne1 {[%emt 0:04:56]} (20. Ref3 $15) 20... b6 {[%emt 0:08:27]} 21. cxb6 {[%emt 0:04:50]} cxb6 {[%emt 0:00:06]} 22. a3 {[%emt 0:07:08]} (22. Nef3 $15) 22... Ba6 {[%emt 0:02:17]} 23. Qf5 {[%emt 0:08:16]} Rc8 {[%emt 0:09:10]} ({Better is} 23... Re8 24. Qf2 Rc8) 24. Nb1 $17 {[%emt 0:06:44]} Rc4 {[%emt 0:06:11]} 25. Qd3 {[%emt 0:04:11] Prevents Ne4.} b5 {[%emt 0:05:53]} (25... Ne4 $17 {And now ...f5 would win.} 26. Bxe4 dxe4 27. Rxe4 Qc8) 26. Nd2 $15 {[%emt 0:01:50] Prevents f5.} Rc6 {[%emt 0:03:21]} 27. Nb3 {[%emt 0:00:42]} b4 {[%emt 0:00:25]} 28. Qd2 {[%emt 0:00:23]} Ne4 {[%emt 0:05:44]} 29. Bxe4 {[%emt 0:03:55]} dxe4 {[%emt 0:00:04]} 30. axb4 {[%emt 0:00:41]} axb4 {[%emt 0:00:06]} 31. Rxe4 {[%emt 0:01:55]} Qd5 {[%emt 0:01:38]} (31... Bc8 $15) 32. Re3 $11 {[%emt 0:01:00]} Bc4 {[%emt 0:08:29]} 33. Qxb4 {[%emt 0:01:05]} Qg5 {[%emt 0:02:12]} 34. Kf2 {[%emt 0:01:39]} (34. Ng2 {simplifies} Be6 35. g4 Rc2 36. Nd2) 34... Qf5+ {[%emt 0:03:26]} 35. Nf3 {[%emt 0:00:32]} Qxh3 $2 {[%emt 0:00:59]} (35... Bxb3 $11 {and Black is okay.} 36. g4 (36. Rxb3 Qxh3 37. Rg1 Rf6 $11) 36... Qf4 37. Qxb3 Rf6) 36. Rc1 $2 {[%emt 0:00:21]} (36. Na5 $18 Bxe2 37. Kxe2 (37. Rxe2 Rf6 $16)) 36... Bd5 $14 {[%emt 0:05:55] aiming for ...Bxf3.} 37. Rxc6 {[%emt 0:00:04]} Bxc6 {[%emt 0:00:09]} 38. Nbd2 {[%emt 0:00:32]} h5 $1 {[%emt 0:00:56]} 39. Qc5 {[%emt 0:03:09]} (39. Qd6 {looks sharper.} h4 40. gxh4 Bxf3 41. Nxf3 Nxh4 42. Qh2) 39... Ba8 {[%emt 0:00:16]} (39... h4 $11 40. Qg5 (40. Qxc6 $2 hxg3+ 41. Ke1 Qh1+ $19) 40... hxg3+ 41. Qxg3 Qc8) 40. d5 {[%emt 0:00:12]} (40. Qg5 $16) 40... h4 $11 {[%emt 0:02:07]} 41. Nxh4 {[%emt 0:04:14]} Nxh4 {[%emt 0:02:41]} 42. gxh4 {[%emt 0:00:08]} Qxh4+ {[%emt 0:02:07]} (42... Qh2+ $1 $15 43. Kf1 Qh1+ 44. Kf2 Bxd5) 43. Kf1 {[%emt 0:04:40]} (43. Rg3 $11 {was preferrable.}) 43... Qh1+ $15 {[%emt 0:06:23]} 44. Kf2 {[%emt 0:00:06]} Bxd5 {[%emt 0:00:45] Hoping for ...Qh2+.} 45. Nf3 {[%emt 0:01:06] Prevents Qh2+.} Bxf3 {[%emt 0:01:45]} 46. Rxf3 {[%emt 0:01:51][%mdl 4096] Endgame KQR-KQR} Qh4+ {[%emt 0:00:35]} 47. Ke3 {[%emt 0:09:19]} Re8+ {[%emt 0:03:01]} 48. Kd2 {[%emt 0:00:07]} Qh6+ {[%emt 0:00:19]} 49. Kd1 {[%emt 0:03:58]} Qe6 {[%emt 0:00:15]} 50. Qb5 {[%emt 0:01:00]} Qe4 {[%emt 0:02:29]} 51. Qd3 {[%emt 0:02:27]} Qa4+ {[%emt 0:00:13]} 52. Qb3 {[%emt 0:01:11]} Rd8+ {[%emt 0:01:29]} 53. Ke1 {[%emt 0:00:22]} Qh4+ {[%emt 0:00:13]} 54. Kf1 {[%emt 0:00:26] [#]} (54. Rg3 $17 {is a better defense.}) 54... Rd1+ $3 $19 {[%emt 0:00:28][%mdl 512]} 55. Kg2 {[%emt 0:01:02]} Qh1+ {[%emt 0:01:59]} 56. Kg3 {[%emt 0:00:08]} Rg1+ $1 {[%emt 0:00:35]} 57. Kf2 {[%emt 0:01:43]} (57. Kf4 {was necessary.}) 57... Rg2+ {[%emt 0:00:37]} 58. Ke3 {[%emt 0:00:05]} Qh6+ {[%emt 0:00:05]} 59. Kd3 {[%emt 0:01:43]} Qd6+ {[%emt 0:00:50]} 60. Kc3 $2 {[%emt 0:02:47]} (60. Kc2 {was the crucial defense.} Rxe2+ 61. Kb1 Re1+ 62. Ka2 Qa6+ 63. Qa3 Qe6+ 64. Qb3) 60... Qe5+ {[%emt 0:00:08]} (60... Rxe2 61. Qxf7+ Kh8 62. Rh3+) 61. Kc4 {[%emt 0:01:12]} Rxe2 {[%emt 0:01:03]} (61... Qxe2+ $142 62. Qd3 Qe6+ 63. Kc5 Qc8+ 64. Kd4 Rg4+ 65. Ke3 Qc5+ 66. Kd2 Rg2+ 67. Qe2 Qb4+ 68. Kd1 Rxe2 69. Kxe2 Qxb2+ 70. Kf1 Qh2 71. Rf2 Qh1+ 72. Ke2 Qe4+ 73. Kd2 Qd4+ 74. Ke2 g5 75. Rf3 g4 76. Rd3 Qe5+ 77. Kf2 Qf4+ 78. Ke2 g3 79. Rd8+ Kg7 80. Rd1 g2 81. Kd3 Qg3+ 82. Kd2 g1=Q 83. Rxg1 Qxg1 84. Kc3 Qc5+ 85. Kd2 Kf6 86. Kd3 Ke5 87. Ke2 Ke4 88. Kd2 f5 89. Ke1 Ke3 90. Kd1 f4 91. Ke1 Qc1#) 62. Qb7 {[%emt 0:00:44]} Rc2+ {[%emt 0:00:44]} (62... Rxb2 $2 63. Qxf7+ Kh8 64. Rh3+) 63. Rc3 {[%emt 0:00:39]} Qe2+ {[%emt 0:04:38]} 64. Kc5 {[%emt 0:00:27] Black must now prevent Qc8+.} Qh5+ {[%emt 0:03:00]} ({Not} 64... Rxb2 65. Qc8+ Kh7 66. Qh3+ Kg8 67. Qc8+ Kh7 68. Qf5+ Kg8 69. Qc8+ $11) (64... g5 $19 {is more deadly.} 65. Rxc2 Qxc2+ 66. Kd4 Kg7) 65. Kc4 $17 {[%emt 0:00:37]} Rh2 {[%emt 0:00:22]} ({Avoid the trap} 65... Qe2+ $2 66. Kc5 Qe5+ 67. Kc4 Rxc3+ 68. bxc3) 66. b4 $2 {[%emt 0:01:00][%mdl 8192]} (66. Rf3 $17) 66... Kh7 $2 {[%emt 0:00:41]} (66... Qe2+ $19 67. Kc5 Rh5+ 68. Kc6 Qe6+ 69. Kc7 Qe5+ 70. Kb6 Qxc3 71. Qa8+ Kh7 72. Qe4+ f5 73. Qd5 Qxb4+ 74. Kc7 Qe7+ 75. Kc8 Qe8+ 76. Kc7 f4 77. Qc4 f3 78. Qd3+ Kh8 79. Qd4 Qe5+ 80. Qxe5 Rxe5 81. Kd6 Rh5 82. Ke6 f2 83. Ke7 f1=Q 84. Kd6 Qa6+ 85. Ke7 Rd5 86. Kf8 Qf6+ 87. Ke8 Rd8#) 67. Qe4+ {[%emt 0:00:39]} (67. Qd7 $1 $15) 67... f5 {[%emt 0:00:50][%cal Bf7f5,Bf5f4,Bf4f3][%mdl 32]} 68. Qe6 {[%emt 0:00:48] [#]} (68. Qd3 $17) 68... Rh4+ $1 $19 {[%emt 0:00:32]} 69. Kc5 {[%emt 0:00:44] [#]} f4+ $1 {[%emt 0:00:41]} ({Inferior is} 69... Qg4 70. Rc4 Qg1+ 71. Kb5 $17) 70. Kd6 $2 {[%emt 0:00:18][%mdl 8192]} (70. Qd5 $17) 70... f3 {[%emt 0:01:14] ( -> ...f2)} 71. Rc5 {[%emt 0:00:40] Prevents f2.} Rd4+ {[%emt 0:00:19]} (71... Qh6 $142 72. Qxh6+ Rxh6+ 73. Ke7 Rb6 74. Rh5+ Kg6) 72. Kc6 {[%emt 0:00:24]} Qh6 {[%emt 0:01:23]} 73. Qxh6+ {[%emt 0:00:21]} Kxh6 {[%emt 0:00:05] KR-KR} 74. Rf5 {[%emt 0:00:09]} Rxb4 {[%emt 0:00:05]} 75. Rxf3 {[%emt 0:00:05]} Rd4 {[%emt 0:00:03]} 76. Kc5 {[%emt 0:00:09]} Rd7 {[%emt 0:00:23]} (76... Rd8 $142 77. Rh3+ Kg5 78. Rg3+ Kf6 79. Rf3+ Ke5) 77. Kc4 {[%emt 0:00:24]} Kg5 $2 {[%emt 0:00:23]} (77... g5 78. Rf8 g4) 78. Rg3+ $2 {[%emt 0:00:10]} (78. Rf1) 78... Kf5 {[%emt 0:00:12]} 79. Rd3 {[%emt 0:00:20]} Rxd3 {[%emt 0:00:28] Black mates.} 80. Kxd3 {[%emt 0:00:04]} Kg4 {[%emt 0:00:05]} 81. Ke2 {[%emt 0:00:09]} Kg3 {[%emt 0:00:11]} 82. Kf1 {[%emt 0:00:12]} g5 {[%emt 0:00:11][%cal Bg7g5,Bg5g4][%mdl 32]} 83. Kg1 {[%emt 0:00:06]} g4 {[%emt 0:00:03] Weighted Error Value: White=0.38/Black=0.18 (very precise)} 0-1

[Event "16th Serbian-ch Women 2022"]
[Site "Bajina Basta"]
[Date "2022.12.08"]
[Round "3.2"]
[White "Dimitrijevic, Andjela"]
[Black "Srdanovic, Jovana"]
[Result "0-1"]
[ECO "B23"]
[WhiteElo "1993"]
[BlackElo "2189"]
[Annotator "TA"]
[PlyCount "96"]
[EventDate "2022.12.06"]
[EventType "tourn"]
[EventCountry "SRB"]
[SourceTitle "playchess.com"]
[Source "ChessBase"]
[SourceQuality "1"]
[TimeControl "40/5400+30:1800+30"]

{[%evp 9,96,20,17,8,8,0,17,12,16,13,6,3,2,-3,1,-20,-13,-15,-8,-31,0,-14,-14,-11,-20,-17,-12,-45,-46,-78,-78,-77,-60,-124,-131,-134,-142,-132,-124,-128,-106,-172,-145,-165,-183,-181,-174,-166,-169,-200,-152,-139,-147,-149,-134,-178,-168,-154,-89,-342,-335,-340,-333,-350,-302,-938,-930,-996,-987,-1050,-1018,-1039,-1036,-1008,-991,-1116,-1063,-29980,-29981,-29966,-7316,-29989,-29989,-29990,-29986,-29990,-29991,-29991,-29992]} 1. e4 {[%emt 0:01:18]} c5 {[%emt 0:00:05]} 2. Nc3 {[%emt 0:01:04]} Nc6 {[%emt 0:00:09]} 3. Bb5 {[%emt 0:01:21]} Nd4 {[%emt 0:00:35]} 4. Nf3 {[%emt 0:01:10]} a6 {[%emt 0:00:16]} 5. Bd3 {[%emt 0:01:31]} g6 {[%emt 0:00:23]} 6. O-O {[%emt 0:05:43] B23: Closed Sicilian: Lines without g3.} Bg7 {[%emt 0:03:11]} 7. Rb1 {[%emt 0:03:23]} d6 {[%emt 0:09:04]} 8. b4 {[%emt 0:16:37] The position is equal.} cxb4 {[%emt 0:09:29]} 9. Rxb4 {[%emt 0:01:16]} Nc6 {[%emt 0:03:47]} 10. Rb1 {[%emt 0:03:30]} Nf6 {[%emt 0:01:52][%cal Bg8f6,Bf6d7,Bd7b6][%mdl 32] [#]} 11. Re1 $146 {[%emt 0:07:52]} ({Predecessor:} 11. Bb2 O-O 12. Nd5 Nxd5 13. Bxg7 Kxg7 14. exd5 Ne5 15. Nxe5 dxe5 16. c4 Qd6 17. Qe2 {1-0 (32) Shevchenko,K (2652)-Vokhidov,S (2536) Chess.com INT 2022}) 11... O-O {[%emt 0:04:38]} 12. Bf1 {[%emt 0:02:57]} b5 {[%emt 0:02:17]} 13. h3 {[%emt 0:07:18]} Qa5 {[%emt 0:19:02]} 14. a3 {[%emt 0:13:19]} Nd7 {[%emt 0:03:41]} 15. Nd5 {[%emt 0:07:07]} e6 {[%emt 0:05:42] Prevents d4.} 16. Nb4 {[%emt 0:02:51]} Nce5 {[%emt 0:02:36]} 17. Nxe5 {[%emt 0:05:29]} dxe5 {[%emt 0:00:49]} 18. Bb2 {[%emt 0:02:49]} Qc7 {[%emt 0:05:00]} 19. Rc1 {[%emt 0:01:25]} Nb6 {[%emt 0:01:04] Prevents c4.} 20. c4 {[%emt 0:08:19]} bxc4 {[%emt 0:02:07]} 21. a4 {[%emt 0:04:03]} ({Better is} 21. Nc2 $15) 21... a5 $17 {[%emt 0:01:25]} 22. Na2 {[%emt 0:00:04]} Ba6 {[%emt 0:00:57]} 23. Nc3 {[%emt 0:00:56]} Rfd8 {[%emt 0:01:04]} 24. Qc2 {[%emt 0:00:25]} Qd7 {[%emt 0:01:19] Black is more active.} 25. Rcd1 {[%emt 0:00:28]} (25. Ba3 $17) 25... Rab8 {[%emt 0:01:11]} 26. Ba3 {[%emt 0:00:43]} Bf8 {[%emt 0:06:25]} 27. Bxf8 {[%emt 0:00:22]} Kxf8 {[%emt 0:00:03]} (27... Rxf8 28. Rb1 $17) 28. Re3 {[%emt 0:00:06]} Qc6 {[%emt 0:00:54]} 29. d3 {[%emt 0:01:02]} cxd3 {[%emt 0:02:09]} 30. Bxd3 {[%emt 0:00:01]} Bxd3 {[%emt 0:05:25]} 31. Rexd3 {[%emt 0:00:02]} Rxd3 {[%emt 0:00:50]} 32. Qxd3 {[%emt 0:00:56]} Kg8 {[%emt 0:04:38]} (32... Nxa4 33. Nxa4 Qxa4 34. Qd6+ Kg7 35. Qxe5+ f6 36. Qc7+ (36. Qxb8 $2 Qxd1+ 37. Kh2 Qd7 $19) 36... Kh6 37. Qf4+ Kg7 38. Qc7+ Kh6 39. Qf4+ Kg7 40. Qc7+ $11) 33. Qg3 {[%emt 0:00:58]} Rc8 {[%emt 0:00:54]} (33... Nxa4 $142 34. Qxe5 Ra8) 34. Ne2 {[%emt 0:00:33][%mdl 8192] [#] Loses the game.} (34. Qxe5 $17 {was called for.} Nxa4 35. Nb5) 34... Qxe4 $19 {[%emt 0:00:19]} ({Worse is} 34... Nxa4 35. Qxe5 Nb6 36. Qxa5 $17) (34... Qxa4 $2 {loses.} 35. Qd3) 35. Nc3 {[%emt 0:00:26]} Qf4 {[%emt 0:01:11]} (35... Qc2 $2 36. Qxe5 Nd5 37. Rxd5 exd5 38. Nxd5 Qb1+ 39. Kh2) 36. Qd3 {[%emt 0:00:25]} Qd4 {[%emt 0:01:16]} 37. Qc2 {[%emt 0:00:38]} (37. Qa6 Qb4 38. Rb1 Qxc3 39. Qxb6) 37... Rxc3 {[%emt 0:00:17]} 38. Qe2 {[%emt 0:00:29]} Qc5 {[%emt 0:00:18]} ({Not} 38... Qxa4 39. Rd8+ Kg7 40. Qxe5+ Kh6 41. Qxc3 $16) 39. Rd2 {[%emt 0:00:30]} Kg7 {[%emt 0:00:15]} 40. Ra2 {[%emt 0:00:16]} Nd7 {[%emt 0:00:55]} 41. Rd2 {[%emt 0:30:39]} Nf6 {[%emt 0:30:09]} 42. Rb2 {[%emt 0:00:00]} Qd4 {[%emt 0:00:00] Threatens to win with ...Rc1+.} 43. Rd2 {[%emt 0:00:00]} Rc1+ {[%emt 0:00:00]} 44. Kh2 {[%emt 0:00:00] [#]} Qa1 {[%emt 0:00:00]} (44... Ng4+ $142 $1 45. Qxg4 Qxd2 46. Qg3 Qf4 47. h4 Qxg3+ 48. Kxg3 Rc4 49. Kh3 Rxa4 50. Kg3 Rd4 51. h5 gxh5 52. f4 a4 53. Kf3 a3 54. f5 exf5 55. Kf2 a2 56. g4 Rxg4 57. Kf3 a1=Q 58. Ke3 Qa2 59. Kf3 Qg2+ 60. Ke3 Rg3#) 45. Ra2 {[%emt 0:00:00]} Rh1+ {[%emt 0:00:00] Black mates.} 46. Kg3 {[%emt 0:00:00]} Nh5+ {[%emt 0:00:00]} 47. Kf3 {[%emt 0:00:00]} Qc3+ {[%emt 0:00:00]} 48. Qe3 {[%emt 0:00:00]} e4+ {[%emt 0:06:49] Weighted Error Value: White=0.57/Black=0.11 (very precise)} 0-1

[Event "16th Serbian-ch Women 2022"]
[Site "Bajina Basta"]
[Date "2022.12.08"]
[Round "3.3"]
[White "Bojicic, Andjela"]
[Black "Drljevic, Ljilja"]
[Result "0-1"]
[ECO "A54"]
[WhiteElo "2117"]
[BlackElo "2175"]
[Annotator "TA"]
[PlyCount "92"]
[EventDate "2022.12.06"]
[EventType "tourn"]
[EventCountry "SRB"]
[SourceTitle "playchess.com"]
[Source "ChessBase"]
[SourceQuality "1"]
[TimeControl "40/5400+30:1800+30"]

{[%evp 14,92,18,8,42,0,-6,-16,-10,-49,-48,-95,-89,-88,-86,-216,-211,-206,-138,-154,-135,-175,-161,-242,-250,-250,-238,-247,-245,-293,-297,-280,-286,-298,-278,-278,-203,-212,-212,-212,-183,-177,-196,-183,-169,-168,-159,-168,-160,-153,-135,-157,-108,-258,-252,-264,-255,-356,-322,-329,-314,-373,-373,-405,-407,-405,-388,-371,-358,-418,-405,-390,-379,-476,-440,-494,-494,-688,-379,-843,-824]} 1. d4 {[%emt 0:00:03]} Nf6 {[%emt 0:00:02]} 2. c4 {[%emt 0:00:43]} d6 {[%emt 0:00:04]} 3. Nf3 {[%emt 0:01:10]} Nbd7 {[%emt 0:01:12]} 4. Nc3 {[%emt 0:00:32]} e5 {[%emt 0:00:03]} 5. Bg5 {[%emt 0:01:04]} Be7 {[%emt 0:00:06]} 6. e3 {[%emt 0:01:51]} h6 {[%emt 0:01:57]} 7. Bh4 {[%emt 0:00:16]} O-O {[%emt 0:02:17]} 8. Qc2 {[%emt 0:01:53]} c6 {[%emt 0:01:43] A54: Old Indian Defence with Nf3, but without e4.} 9. O-O-O {[%emt 0:11:53]} (9. Be2 $14) 9... exd4 $11 {[%emt 0:38:59]} 10. exd4 {[%emt 0:14:23]} d5 {[%emt 0:03:18] [#] The position is equal.} 11. c5 $146 {[%emt 0:17:23]} (11. Re1 {is interesting.} dxc4 12. Bxc4 Nb6 13. Bb3) ({Predecessor:} 11. g4 dxc4 12. Rg1 Nh7 13. Bxe7 Qxe7 14. Bxc4 Qf6 15. Bd3 Qxf3 16. Bxh7+ Kh8 17. Bd3 {0-1 (42) Iotov,V (2502)-Janev,E (2488) Sunny Beach 2007}) 11... b6 {[%emt 0:04:21]} 12. cxb6 {[%emt 0:04:18]} (12. Na4 $1 $15 {was preferrable.}) 12... axb6 $17 {[%emt 0:04:01][%cal Ba7b6,Bb6b5,Bb5b4][%mdl 32]} 13. Bd3 {[%emt 0:06:02]} b5 {[%emt 0:14:49]} 14. g4 {[%emt 0:07:47] [#]} (14. Rhe1 $17 {was worth a try.}) 14... b4 $1 $19 {[%emt 0:05:00]} (14... Nxg4 15. Bxe7 Qxe7 16. Rdg1 $15) 15. Na4 {[%emt 0:01:14]} Nxg4 {[%emt 0:12:56]} 16. Bxe7 {[%emt 0:01:02]} Qxe7 {[%emt 0:00:02]} 17. b3 {[%emt 0:06:37] Prevents c5.} Qf6 {[%emt 0:01:27]} 18. Qe2 {[%emt 0:05:03]} (18. h3 $142) 18... c5 {[%emt 0:01:37][%cal Bc6c5,Bc5c4][%mdl 32]} 19. h3 {[%emt 0:02:31]} Qf4+ {[%emt 0:00:49]} 20. Kb1 {[%emt 0:01:07]} Ngf6 {[%emt 0:01:06]} ({Not} 20... c4 $2 21. hxg4 cxd3 22. Qxd3) 21. Qe3 {[%emt 0:05:15] Against Re8} Qxe3 {[%emt 0:00:05]} 22. fxe3 {[%emt 0:00:03]} c4 {[%emt 0:00:07]} 23. Bc2 {[%emt 0:00:47]} Re8 {[%emt 0:00:38][%cal Bf8e8,Be8e5,Be5c5][%mdl 32] Prevents Ne5.} 24. Rhe1 {[%emt 0:02:33]} Bb7 {[%emt 0:00:33]} 25. Ne5 {[%emt 0:04:53]} Nxe5 {[%emt 0:01:33]} 26. dxe5 {[%emt 0:00:04]} Rxe5 {[%emt 0:00:52]} 27. bxc4 {[%emt 0:00:38]} dxc4 {[%emt 0:00:28]} 28. Nb6 {[%emt 0:00:39] Against b3} Rb8 {[%emt 0:02:38][%cal Ob4b3] aiming for ...b3!} ({Resist} 28... Nd5 29. Nxa8 Bxa8 30. Rd4 $14) 29. Nxc4 {[%emt 0:00:16]} Rc5 $36 {[%emt 0:00:17][%mdl 2048] Black is on the roll.} 30. Bb3 {[%emt 0:01:18]} Bd5 {[%emt 0:01:08]} 31. Rd4 {[%emt 0:00:55]} Ne4 {[%emt 0:00:50] Strongly threatening ...Bxc4.} 32. Kb2 {[%emt 0:00:21] [#]} Nf2 {[%emt 0:00:47]} (32... Nc3 $142 $1 33. Nd6 Ra8 34. Bxd5 Nxd5) 33. Re2 {[%emt 0:01:45]} (33. Rf1 $17 Nd3+ 34. Rxd3 Bxc4 35. Bxc4 Rxc4 36. Rd7) 33... Nxh3 {[%emt 0:00:35]} 34. Red2 {[%emt 0:00:29]} Be6 {[%emt 0:00:26]} 35. e4 {[%emt 0:00:37]} Ng5 {[%emt 0:00:15]} 36. R2d3 {[%emt 0:00:25]} Kh7 {[%emt 0:00:41]} 37. Nd2 {[%emt 0:00:33]} g6 {[%emt 0:00:45]} 38. Bxe6 {[%emt 0:00:28]} Nxe6 {[%emt 0:00:12]} (38... fxe6 $2 {is the wrong capture.} 39. Kb3 $19) 39. Rd7 {[%emt 0:00:09]} Kg7 {[%emt 0:00:34]} 40. Rf3 {[%emt 0:00:55]} Ng5 {[%emt 0:00:32]} 41. Rf2 {[%emt 0:06:24]} h5 {[%emt 0:02:48]} 42. Rf4 {[%emt 0:03:35]} Rc3 {[%emt 0:04:56]} 43. e5 {[%emt 0:01:48]} Re3 {[%emt 0:03:46] Prevents e6.} 44. Nc4 {[%emt 0:00:21]} Re2+ {[%emt 0:01:09]} 45. Kb3 {[%emt 0:00:27]} Kh6 {[%emt 0:08:54] ...Ne6 is the strong threat.} 46. Re7 {[%emt 0:01:50]} (46. Rd5) 46... Ne6 {[%emt 0:02:55] Weighted Error Value: White=0.45/Black=0.18 (very precise)} 0-1

[Event "16th Serbian-ch Women 2022"]
[Site "Bajina Basta"]
[Date "2022.12.08"]
[Round "3.4"]
[White "Vujcic, Milena"]
[Black "Manakova, Maria"]
[Result "1/2-1/2"]
[ECO "C02"]
[WhiteElo "2029"]
[BlackElo "2160"]
[Annotator "TA"]
[PlyCount "59"]
[EventDate "2022.12.06"]
[EventType "tourn"]
[EventCountry "SRB"]
[SourceTitle "playchess.com"]
[Source "ChessBase"]
[SourceQuality "1"]
[TimeControl "40/5400+30:1800+30"]

{[%evp 16,59,20,26,10,-62,-62,-67,0,0,0,0,0,-53,-50,-60,-19,-143,-140,-145,-147,-145,-147,-146,-25,-23,0,0,0,0,0,0,0,0,12,10,24,10,16,16,11,14,18,-21,-2,-13]} 1. e4 {[%emt 0:00:03]} e6 {[%emt 0:05:42]} 2. d4 {[%emt 0:00:06]} d5 {[%emt 0:00:03]} 3. e5 {[%emt 0:00:10]} c5 {[%emt 0:00:05]} 4. c3 {[%emt 0:00:04]} Nc6 {[%emt 0:00:05]} 5. Nf3 {[%emt 0:00:07]} Bd7 {[%emt 0:00:12]} 6. Be2 {[%emt 0:01:01]} Nge7 {[%emt 0:00:39]} 7. Na3 {[%emt 0:01:14]} Ng6 {[%emt 0:04:11]} 8. Nc2 {[%emt 0:04:02]} cxd4 {[%emt 0:04:52]} 9. cxd4 {[%emt 0:00:10]} f6 {[%emt 0:01:17] C02: French: Advance Variation.} 10. h4 {[%emt 0:18:28]} (10. exf6 $11 Qxf6 11. O-O) 10... fxe5 $15 {[%emt 0:00:45]} 11. h5 {[%emt 0:00:05] Prevents e4.} Nf4 {[%emt 0:04:56]} (11... e4 $1 $15 12. hxg6 exf3 13. Bxf3 h6) 12. dxe5 $11 {[%emt 0:01:36]} Nxe2 {[%emt 0:01:12]} (12... Nxg2+ $2 13. Kf1 $18) 13. Qxe2 {[%emt 0:00:05] [#]} Be7 $146 {[%emt 0:04:25]} ({Predecessor:} 13... Qa5+ 14. Bd2 Qa4 15. Bc3 Be7 16. Nfd4 Nxd4 17. Nxd4 O-O 18. O-O Rf4 19. b3 Qa6 20. Qxa6 bxa6 {½-½ (46) Caruana,F (2820)-Nepomniachtchi,I (2792) chess24.com INT 2021}) 14. Nfd4 {[%emt 0:08:14]} ({White should try} 14. h6 $11) 14... O-O $15 {[%emt 0:02:09]} 15. h6 {[%emt 0:08:42] [#] Hoping for Nxc6.} g6 {[%emt 0:00:27] Black wants to play ...Qb6.} 16. f4 {[%emt 0:08:53]} (16. O-O $1 $11) 16... Bb4+ $17 {[%emt 0:12:44]} 17. Nxb4 {[%emt 0:16:51] Threatens to win with Nbc2.} Nxd4 {[%emt 0:01:28]} 18. Qf2 {[%emt 0:06:49]} Qb6 {[%emt 0:13:22]} 19. Bd2 {[%emt 0:01:56][%cal Bc1d2,Bd2c3,Bc3d4][%mdl 32] [#]} a5 {[%emt 0:07:03]} ({Black should play} 19... Rac8 $1 $17 {aiming for ...Rc4.} 20. Rd1 Nc2+ 21. Nxc2 Qxf2+ 22. Kxf2 Rxc2) 20. Bc3 $11 {[%emt 0:01:39] Strongly threatening Nd3.} axb4 {[%emt 0:00:25]} (20... Rac8 $5 {[%cal Rc8c4]}) 21. Bxd4 {[%emt 0:00:09]} Qb5 {[%emt 0:01:01]} 22. Kd2 {[%emt 0:04:53]} b3 {[%emt 0:03:39]} 23. axb3 {[%emt 0:02:33]} Rxa1 {[%emt 0:02:31]} 24. Rxa1 {[%emt 0:00:05]} Qb4+ {[%emt 0:00:19]} 25. Bc3 {[%emt 0:02:16]} Qe4 {[%emt 0:22:23]} (25... Rxf4 $2 26. Ra8+ $18) 26. Qf3 {[%emt 0:00:50]} Qxf3 {[%emt 0:02:49] The position is equal.} ({Don't take} 26... Rxf4 27. Ra8+ Kf7 28. Qxe4 dxe4 29. Rh8 $16) 27. gxf3 {[%emt 0:00:05]} Rxf4 {[%emt 0:00:10][%cal Og8f7]} 28. Ra8+ {[%emt 0:00:06]} Rf8 {[%emt 0:00:20]} 29. Rxf8+ {[%emt 0:00:20]} Kxf8 {[%emt 0:00:02]} 30. f4 {[%emt 0:00:10] Weighted Error Value: White=0.22 (precise) /Black=0.16 (very precise)} 1/2-1/2